bitfinex-derivatives/quotes_SOLF0:USTF0_20250501
["timestamp","ask_amount","ask_price","bid_price","bid_amount"]
[1746108920570,39.82669973,151.85,151.74,39.82669973]
[1746108921172,39.82669973,151.85,151.77,6.5869]
[1746108921372,6.5862,151.8,151.74,39.82669973]
[1746108921574,4.22615871,151.79,151.74,39.82669973]
[1746108921769,4.22615871,151.78,151.74,39.82669973]
[1746108921971,4.22615871,151.77,151.74,39.82669973]
[1746108922270,4.22615871,151.76,151.74,39.82669973]
[1746108922474,4.22615871,151.75,151.74,46.41519973]
[1746108923375,6.5862,151.8,151.78,6.5867]
[1746108923775,6.5862,151.8,151.77,6.587]
[1746108924276,6.5862,151.8,151.74,39.82669973]
[1746108924576,39.82669973,151.85,151.74,39.82669973]
[1746108924875,27.72,151.85,151.74,39.82669973]
[1746108925467,6.5842,151.85,151.77,12.10669973]
[1746108925670,6.5842,151.85,151.78,27.72]
[1746108925978,6.5842,151.85,151.81,6.5851]
[1746108926371,6.5842,151.85,151.78,27.72]
[1746108926571,6.5842,151.85,151.82,6.5849]
[1746108927575,6.5842,151.85,151.83,6.5846]
[1746108928078,2.0165,151.88,151.82,6.5848]
[1746108928280,2.0165,151.88,151.78,27.72]
[1746108928682,6.5839,151.85,151.78,27.72]
[1746108929577,6.5835,151.86,151.78,27.72]
[1746108929783,2.0165,151.88,151.78,27.72]
[1746108929985,2.0165,151.88,151.8,12.10669973]
[1746108930680,8.5991,151.88,151.85,6.5834]
[1746108930881,6.5826,151.88,151.85,6.5834]
[1746108931285,27.72,151.89,151.79,27.52]
[1746108931473,39.82669973,151.89,151.79,27.52]
[1746108931679,41.1434421,151.89,151.79,27.52]
[1746108931881,6.5844,151.84,151.79,27.52]
[1746108932278,41.1434421,151.89,151.79,27.52]
[1746108932578,1.31682907,151.88,151.8,6.5857]
[1746108932781,1.31682907,151.88,151.77,31.31285958]
[1746108932981,1.31682907,151.88,151.77,43.41955931]
[1746108933275,1.31682907,151.88,151.8,12.10669973]
[1746108933478,1.31682907,151.88,151.8,27.52]
[1746108933979,1.31682907,151.88,151.81,12.10669973]
[1746108934179,1.31682907,151.88,151.87,6.5829]
[1746108935290,4.12473492,151.88,151.87,12.10669973]
[1746108935478,4.6313,151.96,151.87,12.10669973]
[1746108935679,4.12172491,151.95,151.87,12.10669973]
[1746108935980,4.12172491,151.94,151.91,6.5811]
[1746108936283,4.12172491,151.93,151.91,6.5811]
[1746108936483,4.12172491,151.92,151.91,6.5811]
[1746108938886,4.12172491,151.92,151.85,27.52]
[1746108939187,12.10669973,151.96,151.84,12.10669973]
[1746108939188,6.5817,151.9,151.84,39.62669973]
[1746108939387,4.12172491,151.89,151.84,39.62669973]
[1746108939687,27.52,151.93,151.84,39.62669973]
[1746108939879,6.5815,151.91,151.88,6.5822]
[1746108940081,4.10961079,151.9,151.88,6.5822]
[1746108940383,2.0467,151.99,151.84,39.62669973]
[1746108940587,27.52,152.07,151.85,27.52]
[1746108940789,12.10669973,152.03,151.9,12.10669973]
[1746108940989,31.62770025,152.02,151.95,6.5791]
[1746108941285,4.10770025,152.01,151.91,27.52]
[1746108941588,16.21439998,152.0,151.89,27.5]
[1746108941776,4.10770025,151.99,151.89,27.5]
[1746108941982,6.5788,151.97,151.89,27.5]
[1746108942187,4.10770025,151.96,151.89,27.5]
[1746108942388,27.5,151.98,151.94,6.5797]
[1746108942688,4.10032716,151.97,151.94,6.5797]
[1746108942890,4.10032716,151.96,151.89,27.5]
[1746108943088,34.0784,151.98,151.89,27.5]
[1746108943290,4.1004411,151.97,151.89,27.5]
[1746108943590,4.1004411,151.96,151.89,27.5]
[1746108943789,27.5,151.98,151.89,39.60669973]
[1746108943991,18.68419973,152.0,151.89,39.60669973]
[1746108944185,4.10049913,151.99,151.89,39.60669973]
[1746108944386,4.10049913,151.98,151.89,39.60669973]
[1746108944787,27.5,152.01,151.89,39.60669973]
[1746108944988,4.09790662,152.0,151.89,39.60669973]
[1746108945190,27.5,152.01,151.89,39.60669973]
[1746108945382,27.5,152.01,151.92,12.10669973]
[1746108945586,6.5773,152.0,151.93,27.5]
[1746108945992,27.5,152.01,151.95,6.5791]
[1746108946290,4.09804069,152.0,151.93,27.5]
[1746108946493,27.5,152.01,151.93,27.5]
[1746108946686,4.09508874,152.0,151.93,27.5]
[1746108946885,4.09508874,151.99,151.93,27.5]
[1746108947090,4.09508874,151.98,151.93,27.5]
[1746108947288,6.5779,151.99,151.93,27.5]
[1746108947484,27.5,152.01,151.93,27.5]
[1746108947690,4.09298822,152.0,151.93,27.5]
[1746108947987,4.09298822,151.99,151.93,27.5]
[1746108948295,6.578,151.99,151.93,27.5]
[1746108948487,27.5,152.01,151.93,27.5]
[1746108948687,4.09228711,152.0,151.93,27.5]
[1746108948887,27.5,152.05,151.93,27.5]
[1746108949090,4.09231543,152.04,151.93,27.5]
[1746108949394,4.09231543,152.03,151.93,27.5]
[1746108949694,4.09231543,152.02,151.97,6.5783]
[1746108949892,10.66911543,152.01,151.97,6.5783]
[1746108950088,12.10669973,152.04,151.93,27.5]
[1746108950288,4.09066019,152.03,151.93,39.60669973]
[1746108950496,4.09066019,152.02,151.93,39.60669973]
[1746108950694,4.09066019,152.02,151.97,6.5782]
[1746108950896,4.09066019,152.02,151.93,39.60669973]
[1746108951296,6.5757,152.04,151.98,6.5779]
[1746108951493,4.08971147,152.03,151.98,6.5779]
[1746108951686,4.08971147,152.02,151.94,27.5]
[1746108951892,4.08971147,152.01,151.94,27.5]
[1746108952088,6.578,151.99,151.94,27.5]
[1746108952397,12.10669973,152.03,151.94,27.5]
[1746108952398,27.5,152.01,151.94,27.5]
[1746108952600,4.08135367,152.0,151.94,27.5]
[1746108952789,4.08135367,151.99,151.93,6.58]
[1746108952998,4.08019255,151.98,151.91,27.5]
[1746108953195,6.5797,151.95,151.9,27.5]
[1746108953394,12.10669973,152.0,151.92,6.5807]
[1746108953695,4.08045114,151.99,151.92,6.5807]
[1746108953999,4.08045114,151.98,151.93,6.5802]
[1746108954192,4.08045114,151.97,151.93,6.5802]
[1746108954393,46.83301247,152.01,151.93,6.5802]
[1746108954594,4.08120906,152.0,151.92,6.5806]
[1746108954794,46.83301247,152.01,151.92,6.5806]
[1746108954795,4.08120906,151.99,151.92,6.5806]
[1746108955003,4.08120906,151.98,151.92,6.5806]
[1746108955205,4.08120906,151.97,151.92,6.5806]
[1746108955397,46.83301247,152.01,151.9,27.5]
[1746108955701,4.08108602,152.0,151.9,27.5]
[1746108955906,6.5794,151.96,151.93,6.5801]
[1746108956295,46.83301247,152.01,151.9,27.5]
[1746108956503,4.08328918,152.0,151.94,6.5796]
[1746108956700,4.08328918,151.99,151.94,6.5796]
[1746108956898,4.08328918,151.98,151.94,6.5796]
[1746108957102,4.08328918,151.97,151.94,6.5796]
[1746108957396,46.83301247,152.01,151.94,6.5796]
[1746108957602,6.5788,151.97,151.94,6.5796]
[1746108958192,6.5784,151.98,151.95,6.5793]
[1746108958402,4.08415616,151.97,151.95,6.5793]
[1746108958703,6.5784,151.98,151.9,27.5]
[1746108959506,27.5,152.01,151.96,6.5788]
[1746108959700,4.08557698,152.0,151.96,6.5788]
[1746108960006,4.08557698,151.99,151.96,6.5788]
[1746108960302,4.08557698,151.98,151.96,6.5788]
[1746108960604,27.5,152.01,151.97,6.5782]
[1746108960804,4.08303967,152.0,151.97,6.5782]
[1746108960998,4.08303967,151.99,151.9,27.5]
[1746108961199,4.08303967,151.98,151.9,27.5]
[1746108961701,6.5775,152.0,151.97,6.5783]
[1746108961903,4.08403464,151.99,151.94,27.32]
[1746108962108,27.5,152.01,151.94,27.32]
[1746108962303,4.08488643,152.0,151.97,6.5783]
[1746108962498,4.08488643,151.99,151.97,6.5783]
[1746108962704,27.5,152.01,151.93,27.32]
[1746108962902,4.08517039,152.0,151.88,13.1642]
[1746108963104,4.08517039,151.99,151.89,27.32]
[1746108963307,6.5788,151.97,151.95,6.5794]
[1746108963807,27.5,152.01,151.95,6.5794]
[1746108964010,6.5785,151.98,151.95,6.5794]
[1746108964405,27.5,152.01,151.95,6.5794]
[1746108964605,4.08766628,152.0,151.89,27.32]
[1746108964809,4.08766628,151.99,151.89,27.32]
[1746108965108,6.5788,151.97,151.94,6.5796]
[1746108965307,27.5,152.01,151.89,27.32]
[1746108965609,6.5788,151.97,151.94,6.5798]
[1746108966507,13.1496,152.06,151.89,19.33301247]
[1746108966702,4.0949741,152.05,151.92,19.33301247]
[1746108966903,4.0949741,152.04,151.93,19.33301247]
[1746108967104,10.6711741,152.03,151.93,19.33301247]
[1746108967310,4.0949741,152.02,151.94,27.32]
[1746108967617,4.0949741,152.01,151.94,27.32]
[1746108967812,4.0949741,152.0,151.94,27.32]
[1746108968108,33.8958,152.04,152.01,6.5766]
[1746108968312,4.09828792,152.03,152.01,6.5766]
[1746108968610,4.09828792,152.02,152.01,6.5766]
[1746108971214,27.32,152.11,151.98,27.32]
[1746108971417,27.32,152.1,151.98,27.32]
[1746108971810,46.65301247,152.1,151.98,27.32]
[1746108972008,6.5754,152.05,151.98,27.32]
[1746108972210,46.65301247,152.1,151.98,27.32]
[1746108972413,47.96793686,152.1,151.98,33.8979]
[1746108972713,2.52345879,152.09,151.95,27.32]
[1746108972915,1.20844795,152.08,151.95,27.32]
[1746108973409,1.20844795,152.08,151.99,6.5776]
[1746108973910,1.31501084,152.09,151.99,6.5776]
[1746108974108,6.5771,152.01,151.95,27.32]
[1746108974309,27.32,152.06,151.95,27.32]
[1746108974509,27.32,152.06,151.96,6.5787]
[1746108974708,6.5779,151.99,151.96,6.5787]
[1746108974916,27.32,152.06,151.94,27.32]
[1746108975118,27.32,152.06,151.98,6.5779]
[1746108975418,27.32,152.06,151.94,27.32]
[1746108975610,27.32,152.06,151.96,6.5788]
[1746108975811,27.32,152.06,151.94,27.32]
[1746108976209,27.32,152.06,151.98,6.5781]
[1746108976410,27.32,152.06,151.94,27.32]
[1746108976610,6.5769,152.01,151.94,27.32]
[1746108976812,6.5769,152.01,151.98,6.5779]
[1746108977419,27.32,152.06,151.98,6.5779]
[1746108977818,27.32,152.06,151.94,27.32]
[1746108978820,6.5751,152.05,152.02,6.5761]
[1746108979019,27.32,152.06,151.98,27.32]
[1746108979414,6.5757,152.04,151.98,27.32]
[1746108979914,6.5757,152.04,152.01,6.5766]
[1746108980415,6.5757,152.04,151.98,27.32]
[1746108980620,27.32,152.06,151.98,27.32]
[1746108980822,28.63501084,152.09,151.98,46.65301247]
[1746108981217,6.5746,152.07,151.98,46.65301247]
[1746108981522,28.63501084,152.09,151.98,46.65301247]
[1746108982218,28.63501084,152.09,152.03,6.5758]
[1746108982418,28.63501084,152.09,151.98,46.65301247]
[1746108982611,28.63501084,152.09,152.03,6.5756]
[1746108983207,4.02945978,152.08,152.04,6.5754]
[1746108983412,10.60395978,152.07,152.04,6.5754]
[1746108983612,4.02945978,152.06,152.04,6.5754]
[1746108983813,4.02945978,152.05,152.04,6.5754]
[1746108984616,13.1391,152.18,152.04,6.5754]
[1746108984617,2.53548116,152.3,152.04,45.24602494]
[1746108984917,1.20702985,152.29,152.08,19.33301247]
[1746108985122,1.14370224,152.36,152.24,19.33301247]
[1746108985419,116.8887624,152.39,152.09,574.4327]
[1746108985420,116.8887624,152.39,152.25,27.32]
[1746108985616,116.8887624,152.39,152.26,19.33301247]
[1746108986818,547.8,152.38,152.26,19.33301247]
[1746108987021,27.3,152.37,152.26,19.33301247]
[1746108987317,547.8,152.38,152.3,19.33301247]
[1746108987521,547.8,152.38,152.32,6.5631]
[1746108987722,547.8,152.38,152.3,19.33301247]
[1746108988424,520.5,152.38,152.3,19.33301247]
[1746108988619,27.16,152.37,152.3,19.33301247]
[1746108989322,520.5,152.38,152.37,62.62571919]
[1746108989514,547.66,152.38,152.37,62.62571919]
[1746108989913,554.22,152.38,152.37,62.62571919]
[1746108990127,560.7809,152.38,152.37,62.62571919]
[1746108990925,554.2209,152.38,152.37,62.62571919]
[1746108991121,6.5621,152.35,152.34,156.5642979]
[1746108991320,547.66,152.38,152.28,7.5306522]
[1746108991520,528.97903739,152.38,152.28,7.5306522]
[1746108991722,6.5623,152.35,152.28,7.5306522]
[1746108991926,27.16,152.34,152.28,7.5306522]
[1746108992327,6.5618,152.36,152.28,14.0953522]
[1746108992528,27.14,152.35,152.28,14.0953522]
[1746108992724,17.07271039,152.34,152.28,14.0953522]
[1746108993024,27.14,152.34,152.28,14.0953522]
[1746108993726,6.5622,152.35,152.28,14.0953522]
[1746108993926,6.5628,152.34,152.28,6.5647]
[1746108994126,27.14,152.34,152.27,26.86366467]
[1746108994327,6.5642,152.31,152.27,7.5306522]
[1746108994519,27.14,152.33,152.27,7.5306522]
[1746108994721,27.14,152.32,152.27,7.5306522]
[1746108994926,501.81903739,152.38,152.27,7.5306522]
[1746108995425,27.14,152.37,152.27,7.5306522]
[1746108995618,6.5643,152.31,152.25,6.5663]
[1746108996026,27.14,152.39,152.3,19.33301247]
[1746108997226,27.14,152.39,152.23,34.6706522]
[1746108997534,27.14,152.39,152.24,31.25436627]
[1746108997753,27.14,152.38,152.27,31.25436627]
[1746108999045,27.14,152.38,152.25,30.1226088]
[1746108999246,6.5638,152.32,152.27,6.5655]
[1746108999448,27.14,152.32,152.25,30.1226088]
[1746108999643,6.5646,152.3,152.26,6.566]
[1746108999944,27.14,152.32,152.25,30.1226088]
[1746109000447,27.14,152.32,152.3,30.1226088]
[1746109000948,33.7031,152.33,152.3,30.1226088]
[1746109001151,24.08594934,152.33,152.3,30.1226088]
[1746109002243,6.5639,152.31,152.24,7.5306522]
[1746109002549,24.08594934,152.33,152.24,38.78501847]
[1746109002845,24.08594934,152.33,152.27,6.5653]
[1746109003245,24.08594934,152.33,152.24,38.78501847]
[1746109003549,24.08594934,152.33,152.28,6.5652]
[1746109003747,24.08594934,152.33,152.24,38.78501847]
[1746109003949,24.08594934,152.33,152.25,57.3788452]
[1746109004142,24.08594934,152.33,152.25,50.8127452]
[1746109004953,6.564,152.31,152.25,50.8127452]
[1746109005250,24.08594934,152.33,152.25,50.8127452]
[1746109005753,24.08594934,152.33,152.28,6.5649]
[1746109005952,24.08594934,152.33,152.25,50.8127452]
[1746109006357,24.08594934,152.33,152.29,6.5645]
[1746109006852,24.08594934,152.33,152.27,6.5653]
[1746109007046,24.08594934,152.33,152.21,31.25436627]
[1746109007255,24.08594934,152.33,152.18,520.82]
[1746109007256,6.5651,152.29,152.18,520.82]
[1746109007449,27.14,152.28,152.18,520.82]
[1746109007949,27.14,152.28,152.26,6.5657]
[1746109009055,27.14,152.28,152.18,520.82]
[1746109009642,6.5661,152.26,152.17,129.53220955]
[1746109010253,27.14,152.28,152.17,129.53220955]
[1746109010654,27.14,152.28,152.25,6.5664]
[1746109011756,27.14,152.28,152.24,6.5667]
[1746109011948,27.14,152.28,152.17,129.53220955]
[1746109012149,6.5663,152.26,152.23,6.5673]
[1746109013056,6.5657,152.27,152.24,6.5669]
[1746109013256,6.5657,152.27,152.17,58.39436627]
[1746109013257,27.14,152.28,152.17,27.14]
[1746109013655,6.5668,152.25,152.21,6.5679]
[1746109013849,27.14,152.24,152.21,6.5679]
[1746109014049,27.14,152.24,152.15,7.5306522]
[1746109014357,6.5672,152.24,152.15,7.5306522]
[1746109014652,8.44681717,152.26,152.22,7.5306522]
[1746109015850,6.5665,152.25,152.22,14.0981522]
[1746109016051,8.44681717,152.26,152.22,6.5675]
[1746109016555,6.5668,152.25,152.22,6.5675]
[1746109017656,15.01301717,152.26,152.23,6.5673]
[1746109017953,8.44681717,152.26,152.12,248.68595487]
[1746109018149,6.5665,152.25,152.22,6.5675]
[1746109018651,15.01301717,152.26,152.13,54.3854522]
[1746109018857,8.44681717,152.26,152.17,31.25436627]
[1746109019357,8.44681717,152.26,152.24,6.5667]
[1746109019553,8.44681717,152.26,152.17,19.24923629]
[1746109019754,8.44681717,152.26,152.24,6.5667]
[1746109020157,8.44681717,152.26,152.17,19.24923629]
[1746109020455,8.44681717,152.26,152.24,6.5669]
[1746109021755,15.01281717,152.26,152.24,6.5669]
[1746109021954,15.01281717,152.26,152.23,6.5671]
[1746109022255,6.5665,152.25,152.19,7.5306522]
[1746109022457,6.5665,152.25,152.22,6.5676]
[1746109022649,6.5665,152.25,152.19,7.5306522]
[1746109023054,6.5669,152.24,152.2,6.5683]
[1746109023249,8.44681717,152.26,152.17,7.5306522]
[1746109023663,6.5669,152.24,152.21,6.5679]
[1746109023960,8.44681717,152.26,152.17,7.5306522]
[1746109024861,32.37483629,152.34,152.17,7.5306522]
[1746109025158,27.1,152.33,152.21,49.37184509]
[1746109025861,6.5641,152.31,152.21,49.37184509]
[1746109026165,27.1,152.33,152.21,49.37184509]
[1746109027463,27.1,152.33,152.29,6.5645]
[1746109027660,27.1,152.33,152.21,49.37184509]
[1746109027860,27.1,152.33,152.25,30.1226088]
[1746109028066,6.5635,152.32,152.29,6.5644]
[1746109028361,27.1,152.33,152.25,30.1226088]
[1746109028664,27.1,152.33,152.25,36.6888088]
[1746109028964,27.1,152.33,152.25,30.1226088]
[1746109029157,6.564,152.31,152.26,6.5657]
[1746109029353,27.1,152.33,152.26,6.5657]
[1746109029954,27.1,152.33,152.24,5.01923389]
[1746109030365,6.5654,152.28,152.24,5.01923389]
[1746109030567,6.5654,152.28,152.24,11.58583389]
[1746109030973,6.5654,152.28,152.24,5.01923389]
[1746109031165,27.08,152.29,152.25,6.5662]
[1746109031567,6.5654,152.28,152.25,6.5662]
[1746109032868,27.08,152.3,152.23,7.5306522]
[1746109034369,6.5652,152.28,152.25,6.5662]
[1746109034666,27.08,152.3,152.23,7.5306522]
[1746109034969,6.5654,152.28,152.25,6.5662]
[1746109035570,6.5656,152.27,152.24,6.5666]
[1746109036068,6.5653,152.28,152.25,6.5664]
[1746109036456,27.08,152.3,152.21,35.16116587]
[1746109036660,27.08,152.3,152.23,19.24923629]
[1746109037171,27.08,152.3,152.28,6.5649]
[1746109037863,0.27134,152.36,152.28,19.24923629]
[1746109038061,27.08,152.44,152.32,19.24923629]
[1746109038255,27.08,152.44,152.32,46.32923629]
[1746109038455,27.08,152.44,152.39,6.5602]
[1746109038669,27.08,152.44,152.32,46.32923629]
[1746109038863,6.5587,152.43,152.4,6.5597]
[1746109039166,27.08,152.44,152.32,46.32923629]
[1746109039669,6.5594,152.42,152.32,46.32923629]
[1746109040164,6.5597,152.41,152.32,46.32923629]
[1746109040771,6.5593,152.42,152.32,46.32923629]
[1746109040969,27.08,152.44,152.32,46.32923629]
[1746109041771,27.08,152.44,152.37,31.20045369]
[1746109042467,27.08,152.44,152.36,27.08]
[1746109042664,27.08,152.44,152.33,27.08]
[1746109042968,6.5597,152.41,152.37,6.5611]
[1746109043165,27.08,152.44,152.37,6.5611]
[1746109043469,27.08,152.44,152.36,6.5614]
[1746109044565,6.562,152.36,152.28,27.08]
[1746109045071,27.08,152.38,152.28,27.08]
[1746109045368,6.5622,152.35,152.28,27.08]
[1746109045564,27.08,152.38,152.32,6.563]
[1746109045772,27.08,152.38,152.28,27.08]
[1746109046174,6.562,152.36,152.32,6.5631]
[1746109046472,27.08,152.38,152.28,27.08]
[1746109046670,33.6411,152.38,152.34,6.5623]
[1746109047179,33.6411,152.38,152.34,6.5622]
[1746109047380,27.08,152.38,152.28,27.08]
[1746109047577,27.08,152.38,152.3,31.20045369]
[1746109047779,27.08,152.38,152.37,6.5613]
[1746109047981,27.08,152.42,152.33,31.20045369]
[1746109048282,27.08,152.42,152.39,6.5601]
[1746109048581,27.08,152.42,152.32,27.08]
[1746109048780,27.08,152.42,152.37,6.5613]
[1746109049181,27.08,152.42,152.4,6.5597]
[1746109049381,1.3119916,152.44,152.33,31.20045369]
[1746109049777,1.3119916,152.44,152.41,6.5593]
[1746109050077,1.3119916,152.44,152.33,31.20045369]
[1746109050581,27.0,152.45,152.33,31.20045369]
[1746109051081,27.0,152.45,152.34,62.0]
[1746109051680,27.0,152.45,152.34,75.125]
[1746109051877,27.0,152.48,152.42,6.5588]
[1746109052083,27.0,152.48,152.38,27.0]
[1746109052480,27.0,152.48,152.42,6.5589]
[1746109052790,27.0,152.48,152.38,27.0]
[1746109053384,6.5577,152.46,152.38,27.0]
[1746109053582,6.5577,152.46,152.43,6.5585]
[1746109054078,27.0,152.48,152.38,27.0]
[1746109054681,6.5562,152.49,152.46,6.5572]
[1746109055287,6.5558,152.5,152.38,27.0]
[1746109055491,27.0,152.51,152.39,31.20045369]
[1746109055787,27.0,152.51,152.38,27.0]
[1746109056789,31.20045369,152.5,152.41,6.5593]
[1746109057089,27.0,152.51,152.38,27.0]
[1746109057788,6.5582,152.45,152.42,6.5589]
[1746109058086,27.0,152.47,152.38,27.0]
[1746109058486,6.5586,152.44,152.41,6.5593]
[1746109058680,27.0,152.47,152.34,519.6]
[1746109058987,58.20045369,152.47,152.35,27.0]
[1746109059290,6.5589,152.43,152.4,6.5597]
[1746109059588,6.5584,152.44,152.41,6.5591]
[1746109059788,27.0,152.47,152.35,27.0]
[1746109060188,6.5582,152.45,152.35,27.0]
[1746109060788,6.5582,152.45,152.42,6.5589]
[1746109061591,6.5582,152.45,152.43,6.5587]
[1746109061780,27.0,152.47,152.43,6.5587]
[1746109061976,27.0,152.47,152.35,27.0]
[1746109062182,6.5556,152.51,152.4,13.12]
[1746109062383,31.20045369,152.54,152.41,27.0]
[1746109063290,6.5559,152.5,152.46,6.5574]
[1746109063484,27.0,152.5,152.41,27.0]
[1746109063684,27.0,152.5,152.44,6.558]
[1746109063884,6.5567,152.48,152.41,27.0]
[1746109064188,27.0,152.5,152.41,6.5594]
[1746109064389,27.0,152.5,152.36,27.0]
[1746109064689,6.558,152.45,152.36,27.0]
[1746109064888,33.558,152.45,152.36,27.0]
[1746109065188,27.0,152.45,152.43,6.5584]
[1746109066590,27.0,152.45,152.44,6.5583]
[1746109066793,27.0,152.45,152.36,27.0]
[1746109067391,27.0,152.45,152.43,6.5586]
[1746109068195,27.0,152.45,152.36,27.0]
[1746109068892,27.0,152.45,152.44,6.5583]
[1746109069397,27.0,152.45,152.43,6.5585]
[1746109069897,27.0,152.49,152.45,6.5576]
[1746109070194,19.19966393,152.48,152.24,19.19966393]
[1746109070395,19.19966393,152.45,152.32,6.563]
[1746109070594,546.4,152.44,152.27,19.19966393]
[1746109071289,546.4,152.44,152.28,27.0]
[1746109071487,6.5609,152.38,152.34,6.5622]
[1746109071892,27.0,152.4,152.34,6.5622]
[1746109072092,6.5607,152.39,152.35,6.5621]
[1746109072393,6.5607,152.39,152.32,27.0]
[1746109072602,27.0,152.4,152.32,27.0]
[1746109073100,6.5593,152.42,152.33,19.19966393]
[1746109073301,27.0,152.43,152.33,19.19966393]
[1746109073695,33.5589,152.43,152.33,19.19966393]
[1746109074001,27.0,152.43,152.33,19.19966393]
[1746109074203,6.5601,152.4,152.33,19.19966393]
[1746109074502,27.0,152.43,152.32,27.0]
[1746109074698,27.0,152.43,152.31,27.0]
[1746109075198,6.5613,152.38,152.31,27.0]
[1746109075599,27.0,152.39,152.31,27.0]
[1746109075902,6.5611,152.38,152.31,27.0]
[1746109076304,6.5611,152.38,152.35,6.5619]
[1746109077104,6.5613,152.37,152.34,6.5624]
[1746109077304,27.0,152.39,152.31,27.0]
[1746109077606,6.5611,152.38,152.31,27.0]
[1746109077801,27.0,152.39,152.31,27.0]
[1746109078103,6.5599,152.41,152.38,6.5606]
[1746109078804,6.5599,152.41,152.37,6.5612]
[1746109079004,6.5601,152.4,152.37,6.5612]
[1746109079303,27.0,152.43,152.33,19.19966393]
[1746109079602,6.56,152.4,152.37,6.5613]
[1746109079897,27.0,152.43,152.33,19.19966393]
[1746109081005,27.0,152.43,152.31,27.0]
[1746109081904,6.562,152.36,152.33,6.5629]
[1746109082305,26.94,152.38,152.31,27.0]
[1746109082606,6.5618,152.36,152.33,6.563]
[1746109082907,26.94,152.38,152.31,27.0]
[1746109083103,6.562,152.36,152.33,6.5627]
[1746109083300,26.94,152.38,152.27,46.13966393]
[1746109083499,6.5615,152.37,152.34,6.5625]
[1746109083699,26.94,152.38,152.27,46.13966393]
[1746109083895,26.94,152.41,152.27,26.94]
[1746109084097,6.5611,152.38,152.3,19.19966393]
[1746109084302,6.5611,152.38,152.31,26.94]
[1746109084499,26.94,152.41,152.31,26.94]
[1746109084703,6.5599,152.41,152.31,26.94]
[1746109085010,546.34,152.44,152.31,26.94]
[1746109085209,6.5603,152.4,152.37,6.5612]
[1746109085409,546.34,152.44,152.31,26.94]
[1746109086303,546.34,152.44,152.35,6.5619]
[1746109086503,546.34,152.44,152.31,26.94]
[1746109086704,1.31207767,152.43,152.28,26.94]
[1746109087711,6.5615,152.37,152.34,6.5624]
[1746109088106,6.5615,152.37,152.28,26.94]
[1746109088307,6.5619,152.36,152.28,26.94]
[1746109088507,26.94,152.39,152.28,26.94]
[1746109088915,6.5622,152.35,152.32,6.5632]
[1746109089116,26.94,152.39,152.27,26.94]
[1746109089715,26.94,152.39,152.3,6.564]
[1746109089916,26.94,152.39,152.27,26.94]
[1746109090113,6.563,152.33,152.27,26.94]
[1746109090315,26.94,152.35,152.27,26.94]
[1746109090715,6.5633,152.33,152.3,6.5643]
[1746109091015,26.94,152.35,152.27,26.94]
[1746109091215,33.5025,152.35,152.27,26.94]
[1746109091416,26.94,152.35,152.27,46.13966393]
[1746109091612,1.31207767,152.43,152.27,46.13966393]
[1746109091613,26.96,152.38,152.27,46.13966393]
[1746109091812,26.96,152.38,152.27,26.94]
[1746109092812,13.1231,152.37,152.23,1.14255696]
[1746109093012,19.19966393,152.24,152.16,22.5919566]
[1746109093213,19.19966393,152.19,152.16,22.5919566]
[1746109093408,26.96,152.18,152.16,22.5919566]
[1746109093609,26.96,152.17,152.16,22.5919566]
[1746109093805,33.5303,152.17,152.14,60.30348304]
[1746109094011,46.15966393,152.17,152.15,93.93857879]